[Event "NOR-ch Youth 2019"]
[Site "Skien"]
[Date "2019.11.09"]
[Round "4.23"]
[White "Shehzad, Alina"]
[Black "Haug, Havard"]
[Result "0-1"]
[ECO "B56"]
[WhiteElo "1174"]
[BlackElo "1544"]
[Annotator "NA RC"]
[PlyCount "94"]
[EventDate "2019.11.08"]
[EventType "swiss"]
[EventCountry "NOR"]
[SourceTitle "playchess.com"]
[Source "ChessBase"]
[SourceQuality "1"]
[TimeControl "5400+30"]

1. e4 {[%emt 0:02:56]} c5 {[%emt 0:00:00]} 2. Nf3 {[%emt 0:00:25]} Nc6 {[%emt 0:00:00]} 3. d4 {[%emt 0:00:08]} cxd4 {[%emt 0:00:27]} 4. Nxd4 {[%emt 0:00:22]} Nf6 {[%emt 0:00:28]} 5. Nc3 {[%emt 0:00:38]} d6 {[%emt 0:00:53]} 6. Bb5 {[%emt 0:02:17]} Bd7 {[%emt 0:01:14]} 7. O-O {[%emt 0:00:43]} g6 {[%emt 0:00:59]} 8. Be3 {[%emt 0:01:09]} Bg7 {[%emt 0:01:01]} 9. Qd2 {[%emt 0:00:34]} O-O {[%emt 0:02:44]} 10. f4 {[%emt 0:00:21]} Nxd4 {[%emt 0:00:45]} 11. Bxd7 {[%emt 0:03:11]} Nxc2 {[%emt 0:00:41]} 12. Qxc2 {[%emt 0:00:55]} Nxd7 {[%emt 0:00:21]} 13. Qd2 {[%emt 0:02:19]} Nc5 {[%emt 0:02:07]} 14. Nd5 {[%emt 0:05:41]} Nxe4 {[%emt 0:01:03]} 15. Qd3 {[%emt 0:01:40]} Nf6 {[%emt 0:00:19]} 16. Nxf6+ {[%emt 0:01:06]} exf6 {[%emt 0:00:07]} 17. f5 {[%emt 0:01:12]} g5 {[%emt 0:00:36]} 18. Qe2 {[%emt 0:01:31]} Re8 {[%emt 0:01:08]} 19. Rae1 {[%emt 0:00:56]} d5 {[%emt 0:00:23]} 20. Qg4 {[%emt 0:01:21]} Re4 {[%emt 0:00:34]} 21. Qg3 {[%emt 0:01:35]} Qb8 {[%emt 0:00:23]} 22. Qf3 {[%emt 0:01:57]} Qe5 {[%emt 0:02:06]} 23. Re2 {[%emt 0:01:06]} g4 {[%emt 0:00:47]} 24. Qf2 {[%emt 0:01:10]} d4 {[%emt 0:01:57]} 25. Bxd4 {[%emt 0:02:21]} Rxe2 {[%emt 0:00:06]} 26. Bxe5 {[%emt 0:00:19]} Rxf2 {[%emt 0:00:04]} 27. Rxf2 {[%emt 0:00:27]} fxe5 {[%emt 0:00:05]} 28. f6 {[%emt 0:00:34]} Bh6 {[%emt 0:00:06]} 29. Re2 {[%emt 0:01:11]} Re8 {[%emt 0:00:07]} 30. Kf2 {[%emt 0:00:49]} e4 {[%emt 0:00:09]} 31. Kg3 {[%emt 0:00:32]} e3 {[%emt 0:00:07]} 32. h3 {[%emt 0:00:58]} gxh3 {[%emt 0:00:09]} 33. Kxh3 {[%emt 0:00:06]} Rd8 {[%emt 0:00:12]} 34. b3 {[%emt 0:01:45]} Rd2 {[%emt 0:00:07]} 35. Re1 {[%emt 0:00:21]} Rxa2 {[%emt 0:00:32]} 36. Kg3 {[%emt 0:01:05]} e2 {[%emt 0:00:21]} 37. Kf2 {[%emt 0:00:25]} Bg5 {[%emt 0:00:04]} 38. Rxe2 {[%emt 0:00:25]} Rxe2+ {[%emt 0:00:04]} 39. Kxe2 {[%emt 0:00:20]} Bxf6 {[%emt 0:00:04]} 40. Ke3 {[%emt 0:00:28]} a5 {[%emt 0:00:01]} 41. Kd3 {[%emt 0:00:28]} b5 {[%emt 0:00:03]} 42. Kd2 {[%emt 0:00:57]} a4 {[%emt 0:00:04]} 43. Kc2 {[%emt 0:01:27]} a3 {[%emt 0:00:05]} 44. Kb1 {[%emt 0:00:17]} b4 {[%emt 0:00:06]} 45. g3 {[%emt 0:00:25]} Bh4 {[%emt 0:00:08]} 46. g4 {[%emt 0:00:46]} h5 {[%emt 0:00:03]} 47. gxh5 {[%emt 0:00:09]} f5 {[%emt 0:00:03]} 0-1

[Event "NOR-ch Youth 2019"]
[Site "Skien"]
[Date "2019.11.09"]
[Round "4.24"]
[White "Myagmarsuren, Evsuld"]
[Black "Sarat, Victor"]
[Result "1-0"]
[ECO "B90"]
[WhiteElo "1471"]
[BlackElo "2079"]
[Annotator "NA RC"]
[PlyCount "39"]
[EventDate "2019.11.08"]
[EventType "swiss"]
[EventCountry "NOR"]
[SourceTitle "playchess.com"]
[Source "ChessBase"]
[SourceQuality "1"]
[TimeControl "5400+30"]

{[%evp 8,38,27,18,38,18,77,59,56,28,32767,32767,32767,32767,66,44,93,32767,108,66,32767,32767,32767,32767,171,75,87,76,92,0,18,14,29999]} 1. e4 {[%emt 0:00:00]} c5 {[%emt 0:00:00]} 2. Nf3 {[%emt 0:00:00]} d6 {[%emt 0:00:00]} 3. d4 {[%emt 0:00:00]} cxd4 {[%emt 0:00:00]} 4. Nxd4 {[%emt 0:00:07]} Nf6 {[%emt 0:00:11]} 5. Nc3 {[%emt 0:00:09]} a6 {[%emt 0:00:11]} 6. Be3 {[%emt 0:00:09]} Qb6 {[%emt 0:00:16] B90: Sicilian Najdorf: Unusual White 6th moves, 6 Be3 Ng4 and 6 Be3 e5} (6... e6 $11 {remains equal.}) (6... e5 7. Nb3 Be7 8. f3 Be6 9. Qd2 Nbd7 10. g4 b5 11. O-O-O O-O 12. g5 b4 13. Ne2 Nh5 14. Ng3 Nf4 15. h4 a5 16. Kb1 a4 17. Nc1 b3 18. cxb3 axb3 19. a3 Qc7 20. Bxf4 exf4 {1-0 (49) Dominguez Perez,L (2763)-Vachier Lagrave,M (2778) Saint Louis 2019}) 7. Nb3 {[%emt 0:02:22]} Qc7 {[%emt 0:00:13]} 8. Qd2 {[%emt 0:00:12]} e6 {[%emt 0:00:20]} 9. f3 {[%emt 0:00:06]} Be7 {[%emt 0:00:19]} 10. O-O-O {[%emt 0:00:30]} b5 {[%emt 0:00:23]} 11. a3 $146 {[%emt 0:00:10]} ({Predecessor:} 11. g4 Nc6 12. g5 Nd7 13. f4 b4 14. Na4 Bb7 15. Bh3 Rc8 16. Rhf1 Na5 17. Nac5 Nxc5 18. Nxc5 dxc5 {0-1 (32) Dolonen,J-Indbryn,T Vadso 1993}) 11... Bb7 {[%emt 0:00:23]} ({Black should play} 11... Nc6 $14) 12. g4 {[%emt 0:00:15]} O-O {[%emt 0:00:25]} 13. h4 {[%emt 0:00:19]} d5 {[%emt 0:00:49]} 14. exd5 {[%emt 0:00:44]} exd5 {[%emt 0:00:07]} 15. g5 {[%emt 0:01:10]} Nh5 {[%emt 0:00:50]} 16. Nxd5 {[%emt 0:00:08]} (16. Bh3 $18 {and White stays clearly on top.}) 16... Bxd5 {[%emt 0:01:47]} 17. Qxd5 {[%emt 0:00:22]} Nc6 {[%emt 0:00:52]} 18. Bd3 {[%emt 0:14:34]} (18. f4 $16) 18... Rad8 {[%emt 0:00:44]} 19. Qe4 {[%emt 0:00:48]} Ng3 {[%emt 0:00:21]} (19... g6 $11 20. Rhe1 Bd6) 20. Qxh7# {[%emt 0:00:11]} 1-0

[Event "NOR-ch Youth 2019"]
[Site "Skien"]
[Date "2019.11.09"]
[Round "5.3"]
[White "Unhjem, Bjorn Robert Lovoll"]
[Black "Gaure, Sigurd Lauvas"]
[Result "1-0"]
[ECO "A08"]
[WhiteElo "1942"]
[BlackElo "1648"]
[Annotator "NA RC"]
[PlyCount "55"]
[EventDate "2019.11.08"]
[EventType "swiss"]
[EventCountry "NOR"]
[SourceTitle "playchess.com"]
[Source "ChessBase"]
[SourceQuality "1"]
[TimeControl "5400+30"]

1. Nf3 {[%emt 0:00:19]} d5 {[%emt 0:00:00]} 2. g3 {[%emt 0:00:13]} g6 {[%emt 0:00:00]} 3. Bg2 {[%emt 0:00:07]} Bg7 {[%emt 0:00:04]} 4. O-O {[%emt 0:01:01]} c5 {[%emt 0:00:29]} 5. d4 {[%emt 0:00:21]} cxd4 {[%emt 0:00:28]} 6. Nxd4 {[%emt 0:00:10]} Nf6 {[%emt 0:00:06]} 7. c4 {[%emt 0:01:24]} Nc6 {[%emt 0:00:33]} 8. cxd5 {[%emt 0:10:07]} Nxd5 {[%emt 0:05:11]} 9. Nxc6 {[%emt 0:00:55]} bxc6 {[%emt 0:00:10]} 10. e4 {[%emt 0:00:20]} Nb6 {[%emt 0:00:21]} 11. Qc2 {[%emt 0:00:24]} Bb7 {[%emt 0:00:33]} 12. a4 {[%emt 0:00:40]} Qc8 {[%emt 0:01:28]} 13. Be3 {[%emt 0:03:32]} O-O {[%emt 0:05:20]} 14. Rd1 {[%emt 0:01:47]} Rd8 {[%emt 0:02:14]} 15. Rxd8+ {[%emt 0:01:33]} Qxd8 {[%emt 0:00:11]} 16. a5 {[%emt 0:00:12]} Rc8 {[%emt 0:02:18]} 17. axb6 {[%emt 0:00:20]} axb6 {[%emt 0:00:10]} 18. Nc3 {[%emt 0:00:55]} c5 {[%emt 0:00:55]} 19. Ra7 {[%emt 0:00:43]} Bc6 {[%emt 0:00:42]} 20. Nd5 {[%emt 0:00:45]} Bf8 {[%emt 0:01:30]} 21. Bg5 {[%emt 0:01:14]} f6 {[%emt 0:00:53]} 22. Nxf6+ {[%emt 0:02:16]} Kh8 {[%emt 0:01:39]} 23. Nd5 {[%emt 0:00:34]} Ra8 {[%emt 0:00:57]} 24. Rxa8 {[%emt 0:01:06]} Qxa8 {[%emt 0:00:09]} 25. h4 {[%emt 0:00:29]} Qb7 {[%emt 0:00:46]} 26. Nf4 {[%emt 0:01:54]} Bg7 {[%emt 0:07:40]} 27. Ne6 {[%emt 0:00:11]} Bf6 {[%emt 0:00:39]} 28. Nd8 {[%emt 0:00:11]} 1-0

[Event "NOR-ch Youth 2019"]
[Site "Skien"]
[Date "2019.11.09"]
[Round "5.4"]
[White "Opseth, Oliver"]
[Black "Hestvik, Elias"]
[Result "0-1"]
[ECO "B31"]
[WhiteElo "1795"]
[BlackElo "1784"]
[Annotator "NA RC"]
[PlyCount "90"]
[EventDate "2019.11.08"]
[EventType "swiss"]
[EventCountry "NOR"]
[SourceTitle "playchess.com"]
[Source "ChessBase"]
[SourceQuality "1"]
[TimeControl "5400+30"]

1. e4 {[%emt 0:00:00]} c5 {[%emt 0:00:26]} 2. Nf3 {[%emt 0:00:00]} Nc6 {[%emt 0:00:11]} 3. Bb5 {[%emt 0:00:25]} g6 {[%emt 0:00:11]} 4. O-O {[%emt 0:00:36]} Bg7 {[%emt 0:00:11]} 5. Nc3 {[%emt 0:00:38]} Nf6 {[%emt 0:03:59]} 6. d3 {[%emt 0:02:56]} O-O {[%emt 0:03:55]} 7. Be3 {[%emt 0:01:35]} d6 {[%emt 0:00:44]} 8. Bxc6 {[%emt 0:00:38]} bxc6 {[%emt 0:00:22]} 9. Qd2 {[%emt 0:00:57]} Ng4 {[%emt 0:01:29]} 10. Rae1 {[%emt 0:04:29]} Nxe3 {[%emt 0:02:00]} 11. Qxe3 {[%emt 0:02:51]} Rb8 {[%emt 0:02:11]} 12. Qc1 {[%emt 0:04:52]} Qa5 {[%emt 0:20:25]} 13. e5 {[%emt 0:03:37]} d5 {[%emt 0:01:13]} 14. a3 {[%emt 0:03:18]} Bg4 {[%emt 0:03:30]} 15. Nh4 {[%emt 0:01:18]} d4 {[%emt 0:02:34]} 16. Ne4 {[%emt 0:03:08]} Bxe5 {[%emt 0:06:03]} 17. Qg5 {[%emt 0:02:09]} Bg7 {[%emt 0:06:46]} 18. Qxg4 {[%emt 0:03:46]} f5 {[%emt 0:00:30]} 19. Qg5 {[%emt 0:01:39]} fxe4 {[%emt 0:01:36]} 20. Rxe4 {[%emt 0:00:08]} Rxb2 {[%emt 0:08:05]} 21. Qxe7 {[%emt 0:02:26]} Rxc2 {[%emt 0:02:11]} 22. Qe6+ {[%emt 0:01:45]} Rf7 {[%emt 0:00:21]} 23. Qb3 {[%emt 0:03:26]} Qc3 {[%emt 0:04:25]} 24. Re8+ {[%emt 0:01:37]} Bf8 {[%emt 0:00:04]} 25. Qe6 {[%emt 0:00:31]} Rc1 {[%emt 0:07:33]} 26. Nf3 {[%emt 0:02:13]} Rxf1+ {[%emt 0:00:25]} 27. Kxf1 {[%emt 0:00:03]} Qxd3+ {[%emt 0:00:42]} 28. Ke1 {[%emt 0:00:17]} Qb1+ {[%emt 0:03:19]} 29. Kd2 {[%emt 0:00:23]} Qb2+ {[%emt 0:00:23]} 30. Ke1 {[%emt 0:02:10]} Qc1+ {[%emt 0:01:09]} 31. Ke2 {[%emt 0:00:07]} Qc2+ {[%emt 0:01:01]} 32. Ke1 {[%emt 0:00:08]} d3 {[%emt 0:01:51]} 33. Qe3 {[%emt 0:02:06]} Qc3+ {[%emt 0:11:43]} 34. Kd1 {[%emt 0:00:41]} Rb7 {[%emt 0:02:29]} 35. Qe6+ {[%emt 0:02:12]} Kg7 {[%emt 0:00:19]} 36. Qe5+ {[%emt 0:00:13]} Qxe5 {[%emt 0:00:21]} 37. Nxe5 {[%emt 0:00:11]} Rb3 {[%emt 0:02:44]} 38. a4 {[%emt 0:00:20]} Bd6 {[%emt 0:00:38]} 39. Kd2 {[%emt 0:01:51]} Bxe5 {[%emt 0:00:40]} 40. Rxe5 {[%emt 0:00:06]} c4 {[%emt 0:00:38]} 41. Re7+ {[%emt 0:01:04]} Kf6 {[%emt 0:00:11]} 42. Rxa7 {[%emt 0:00:03]} Rb2+ {[%emt 0:00:12]} 43. Ke3 {[%emt 0:01:24]} Re2+ {[%emt 0:00:37]} 44. Kf3 {[%emt 0:00:03]} c3 {[%emt 0:00:45]} 45. Rc7 {[%emt 0:00:28]} Re6 {[%emt 0:00:30]} 0-1

[Event "NOR-ch Youth 2019"]
[Site "Skien"]
[Date "2019.11.09"]
[Round "5.5"]
[White "Holm, Karl Oskar Magnus"]
[Black "Holand, Per Fredrik"]
[Result "0-1"]
[ECO "E29"]
[WhiteElo "1751"]
[BlackElo "1927"]
[Annotator "NA RC"]
[PlyCount "100"]
[EventDate "2019.11.08"]
[EventType "swiss"]
[EventCountry "NOR"]
[SourceTitle "playchess.com"]
[Source "ChessBase"]
[SourceQuality "1"]
[TimeControl "5400+30"]

{[%evp 14,99,3,32767,32767,32767,32767,32767,32767,32767,32767,32767,32767,32767,32767,32767,32767,32767,32767,32767,32767,32767,32767,32767,32767,32767,32767,32767,-175,-181,-161,-176,-273,-189,-279,-294,-279,32767,32767,32767,32767,32767,-275,-293,-339,-352,-367,-333,-410,-395,-446,-426,-472,-409,-416,-457,-360,-566,-688,-680,-949,-1095,-495,-736,-1050,-493,-670,-740,-664,-793,-1172,-1343,-1033,-1622,-1754,-5073,-1137,-29980,-29981,-12843,-29986,-29986,-12845,-29997,-29998,-29998,-29999,-29999]} 1. d4 {[%emt 0:00:00]} Nf6 {[%emt 0:16:08]} 2. c4 {[%emt 0:00:00]} e6 {[%emt 0:00:15]} 3. Nc3 {[%emt 0:00:00]} Bb4 {[%emt 0:00:06]} 4. e3 {[%emt 0:00:00]} O-O {[%emt 0:00:08]} 5. Bd3 {[%emt 0:00:08]} c5 {[%emt 0:00:19]} 6. a3 {[%emt 0:02:40]} Bxc3+ {[%emt 0:00:57]} 7. bxc3 {[%emt 0:00:04]} Nc6 {[%emt 0:01:30]} 8. Ne2 {[%emt 0:01:15]} b6 {[%emt 0:00:19]} 9. O-O {[%emt 0:00:17]} Ba6 {[%emt 0:04:41]} 10. e4 {[%emt 0:11:22]} Ne8 {[%emt 0:01:11]} 11. e5 {[%emt 0:04:38] E29: Nimzo-Indian: Sämisch: 5...0-0 6 e3 c5 7 Bd3 Nc6} (11. f4 f5 12. Ng3 g6 13. Be3 cxd4 14. cxd4 d5 15. cxd5 Bxd3 16. Qxd3 fxe4 17. Nxe4 Qxd5 18. Rad1 Rd8 19. Rfe1 Ng7 20. Ng5 e5 21. fxe5 Nxe5 22. Qe4 {0-1 (47) Radovanovic,M (2500)-Wei,Y (2737) Changsha 2019}) 11... Na5 {[%emt 0:02:18]} 12. f4 {[%emt 0:03:53]} Bxc4 {[%emt 0:04:27]} 13. Bxc4 {[%emt 0:01:13]} Nxc4 {[%emt 0:00:11]} 14. Qd3 {[%emt 0:00:32]} d5 {[%emt 0:04:19]} 15. f5 {[%emt 0:05:17]} exf5 {[%emt 0:01:49]} 16. Rxf5 {[%emt 0:05:05]} g6 $146 {[%emt 0:01:14]} ({Predecessor:} 16... Nc7 17. Bg5 Qd7 {0-1 (44) Volkmann,A (1910)-Cadilhac,I (2287) Sao Paulo 2018}) 17. Qg3 {[%emt 0:08:12]} Ng7 {[%emt 0:00:56]} 18. Rf3 {[%emt 0:02:36]} f6 {[%emt 0:02:55]} 19. Bh6 {[%emt 0:07:31]} fxe5 {[%emt 0:02:22]} 20. Raf1 {[%emt 0:00:17]} Qe7 {[%emt 0:01:36]} 21. dxe5 {[%emt 0:00:57]} Qxe5 {[%emt 0:02:07]} 22. Rxf8+ {[%emt 0:06:27]} Rxf8 {[%emt 0:00:40]} 23. Rxf8+ {[%emt 0:00:05]} Kxf8 {[%emt 0:00:16]} 24. Qxe5 {[%emt 0:00:04]} Nxe5 {[%emt 0:00:12]} 25. Nf4 {[%emt 0:00:22]} Kf7 {[%emt 0:00:40]} 26. Nxd5 {[%emt 0:01:25]} Nf5 {[%emt 0:00:57]} 27. Bf4 {[%emt 0:01:57]} Nc4 {[%emt 0:00:16]} 28. Bb8 {[%emt 0:00:30]} Ke6 {[%emt 0:00:25]} ({Weaker is} 28... Nxa3 29. Bxa7 Ke6 30. Nf4+ Ke5 31. Nd3+ Ke4 32. Nb2 $17) 29. Nf4+ {[%emt 0:00:14]} Kd7 {[%emt 0:00:08]} 30. Bxa7 {[%emt 0:02:26]} Kc8 {[%emt 0:00:09]} 31. Kf2 {[%emt 0:03:43]} Kb7 {[%emt 0:00:07]} 32. Bxb6 {[%emt 0:00:16]} Kxb6 {[%emt 0:00:18]} 33. Nd5+ {[%emt 0:00:56]} Kb5 {[%emt 0:00:23]} 34. Nf6 {[%emt 0:00:06]} h5 {[%emt 0:01:10]} 35. h3 {[%emt 0:00:33]} (35. Kf3 $142) 35... h4 {[%emt 0:00:56]} 36. Kf3 {[%emt 0:00:31]} Nxa3 {[%emt 0:00:30]} 37. Kf4 {[%emt 0:00:32]} Nc4 {[%emt 0:01:00]} (37... Nb1 $142 38. Ne4 Kc4) 38. Ne4 {[%emt 0:00:27]} (38. Kg5 $142) 38... Ncd6 {[%emt 0:01:00]} 39. Nd2 {[%emt 0:00:14]} Nf7 {[%emt 0:00:28]} 40. Ke4 {[%emt 0:00:39]} Kc6 {[%emt 0:00:40]} 41. Kf4 {[%emt 0:01:48]} Kd5 {[%emt 0:00:20]} 42. Ne4 {[%emt 0:00:20] [#]} Ng3 $1 {[%emt 0:00:32]} 43. Nd2 {[%emt 0:00:17]} Ne2+ {[%emt 0:00:30]} 44. Kg4 {[%emt 0:00:24]} Nxc3 {[%emt 0:02:40]} 45. Kxh4 {[%emt 0:00:20]} Ne4 {[%emt 0:00:37]} 46. Nb1 {[%emt 0:00:19]} Ne5 {[%emt 0:02:58]} 47. Na3 {[%emt 0:00:59]} c4 {[%emt 0:00:33]} 48. Nxc4 {[%emt 0:01:08]} Kxc4 {[%emt 0:00:08]} 49. g3 {[%emt 0:00:07]} Kd4 {[%emt 0:00:18]} 50. g4 {[%emt 0:00:08]} Nf3# {[%emt 0:00:22]} 0-1

[Event "NOR-ch Youth 2019"]
[Site "Skien"]
[Date "2019.11.09"]
[Round "5.8"]
[White "Nilsen, Tobias Lang"]
[Black "Gjestemoen-VonHirsch, Andre"]
[Result "0-1"]
[ECO "B51"]
[WhiteElo "2016"]
[BlackElo "1967"]
[Annotator "NA RC"]
[PlyCount "78"]
[EventDate "2019.11.08"]
[EventType "swiss"]
[EventCountry "NOR"]
[SourceTitle "playchess.com"]
[Source "ChessBase"]
[SourceQuality "1"]
[TimeControl "5400+30"]

1. e4 {[%emt 0:00:00]} c5 {[%emt 0:02:16]} 2. Nf3 {[%emt 0:00:00]} d6 {[%emt 0:00:04]} 3. Bb5+ {[%emt 0:00:00]} Nd7 {[%emt 0:00:04]} 4. Ba4 {[%emt 0:00:41]} Ngf6 {[%emt 0:00:07]} 5. O-O {[%emt 0:00:08]} a6 {[%emt 0:00:03]} 6. c4 {[%emt 0:00:09] B51: Sicilian: Moscow Variation (3 Bb5+) without 3...Bd7} g6 {[%emt 0:00:05]} 7. Nc3 {[%emt 0:01:37]} Bg7 {[%emt 0:00:06]} 8. d3 {[%emt 0:05:08]} O-O {[%emt 0:00:10]} 9. Rb1 {[%emt 0:09:42]} Rb8 $146 {[%emt 0:06:57]} ({Predecessor:} 9... Ng4 10. Ng5 Nb6 11. Bc2 f5 {½-½ (33) Mamedov,R (2708)-Cheparinov,I (2712) Ankara 2018}) 10. a3 {[%emt 0:01:21]} Ne8 {[%emt 0:01:38]} 11. Bd2 {[%emt 0:01:21]} Nc7 {[%emt 0:00:37]} 12. b4 {[%emt 0:01:01]} b5 {[%emt 0:02:27]} 13. cxb5 {[%emt 0:00:45]} axb5 {[%emt 0:00:24]} 14. Bb3 {[%emt 0:01:00]} Ra8 {[%emt 0:09:25]} 15. a4 {[%emt 0:05:05]} bxa4 {[%emt 0:01:56]} 16. Nxa4 {[%emt 0:01:40]} Ba6 {[%emt 0:04:13]} 17. Qc2 {[%emt 0:02:53]} Nb5 {[%emt 0:02:50]} 18. bxc5 {[%emt 0:06:38]} Na3 {[%emt 0:14:10]} 19. Qa2 {[%emt 0:21:57]} Nxb1 {[%emt 0:00:20]} 20. Bxf7+ {[%emt 0:00:18]} Rxf7 {[%emt 0:00:08]} 21. Ng5 {[%emt 0:00:06]} Ne5 {[%emt 0:12:28]} 22. Nb6 $2 {[%emt 0:04:08]} (22. Nxf7 Nxf7 23. Qxb1) 22... Bxd3 {[%emt 0:02:43]} 23. Nxa8 {[%emt 0:00:31]} Bxf1 {[%emt 0:00:05]} 24. c6 {[%emt 0:06:21]} Bc4 {[%emt 0:14:39]} 25. c7 {[%emt 0:01:05]} Qxc7 {[%emt 0:00:05]} ({Weaker is} 25... Bxa2 26. cxd8=Q+ (26. cxd8=R+ $2 {loses.} Rf8 $19) 26... Rf8 27. Qa5 $16) 26. Qxb1 {[%emt 0:00:27] [#]} Qa7 $1 {[%emt 0:00:38]} 27. Nxf7 {[%emt 0:00:34]} Bxf7 {[%emt 0:01:59]} 28. Nb6 {[%emt 0:00:08] [#]} Qa2 $1 {[%emt 0:00:08]} 29. Qc1 {[%emt 0:00:30]} (29. Qxa2 $142 Bxa2 30. Kf1) 29... Nc4 {[%emt 0:00:22]} (29... Nd3 $142 30. Qc8+ Bf8) 30. Nxc4 {[%emt 0:00:07]} Bxc4 {[%emt 0:00:10]} 31. Bg5 {[%emt 0:01:46]} (31. f3 $142) 31... e6 {[%emt 0:07:10]} 32. h4 {[%emt 0:00:39]} Qa1 $19 {[%emt 0:00:04]} 33. Qxa1 {[%emt 0:00:21]} Bxa1 {[%emt 0:00:07]} 34. f3 {[%emt 0:00:26]} Bd4+ {[%emt 0:00:56]} 35. Kh2 {[%emt 0:00:08]} Bf2 {[%emt 0:00:21]} 36. g4 {[%emt 0:00:44]} Bf1 {[%emt 0:00:08]} 37. f4 {[%emt 0:00:39]} d5 {[%emt 0:00:42]} 38. f5 {[%emt 0:00:24]} dxe4 {[%emt 0:00:35]} 39. fxe6 {[%emt 0:00:15]} Kf8 {[%emt 0:00:05]} 0-1

[Event "NOR-ch Youth 2019"]
[Site "Skien"]
[Date "2019.11.09"]
[Round "5.12"]
[White "Oye-Stromberg, Alexander"]
[Black "Sekkingstad, Thomas"]
[Result "1-0"]
[ECO "B12"]
[WhiteElo "1980"]
[BlackElo "1711"]
[Annotator "NA RC"]
[PlyCount "37"]
[EventDate "2019.11.08"]
[EventType "swiss"]
[EventCountry "NOR"]
[SourceTitle "playchess.com"]
[Source "ChessBase"]
[SourceQuality "1"]
[TimeControl "5400+30"]

1. e4 {[%emt 0:00:00]} c6 {[%emt 0:00:00]} 2. d4 {[%emt 0:00:00]} d5 {[%emt 0:00:00]} 3. f3 {[%emt 0:00:34]} dxe4 {[%emt 0:02:31]} 4. fxe4 {[%emt 0:00:27]} Nf6 {[%emt 0:00:12]} 5. e5 {[%emt 0:00:17]} Nd5 {[%emt 0:02:28]} 6. Nf3 {[%emt 0:00:30] B12: Caro-Kann: Advance Variation} Bf5 {[%emt 0:01:54]} (6... g6 7. Bc4 Bg7 8. O-O O-O 9. h3 h6 10. Nc3 Be6 11. Bb3 a5 12. a4 Nd7 {1-0 (49) Maslak,K (2555)-Gaifullin,A (2448) St Petersburg 2018}) 7. Bd3 {[%emt 0:04:34]} Bxd3 {[%emt 0:05:19]} 8. Qxd3 {[%emt 0:00:26]} e6 {[%emt 0:02:29]} 9. O-O {[%emt 0:01:32]} h6 $146 {[%emt 0:08:16]} ({Predecessor:} 9... Be7 10. c4 Nb6 11. Nc3 O-O 12. Ne4 c5 {1-0 (30) Amores Gago,J (2167)-Skok,J (2008) Latschach 2013}) 10. c4 {[%emt 0:04:17]} Nb4 {[%emt 0:05:08]} 11. Qb3 {[%emt 0:00:54]} Qc7 {[%emt 0:06:39]} 12. Nc3 {[%emt 0:06:07]} c5 {[%emt 0:12:11]} 13. a3 {[%emt 0:10:18]} N4a6 {[%emt 0:08:39]} 14. d5 {[%emt 0:02:13]} Nd7 {[%emt 0:08:47]} 15. Bf4 {[%emt 0:09:39]} Rd8 $2 {[%emt 0:14:03]} (15... O-O-O 16. Nb5 Qb6) 16. Rae1 {[%emt 0:01:47]} Qb6 {[%emt 0:03:34]} 17. Qc2 {[%emt 0:02:17]} exd5 {[%emt 0:00:29]} (17... Nb4 $142 18. axb4 cxb4+ 19. Be3 Bc5) 18. e6 {[%emt 0:03:03]} Nf6 {[%emt 0:02:02]} 19. Ne5 $18 {[%emt 0:02:45]} 1-0

[Event "NOR-ch Youth 2019"]
[Site "Skien"]
[Date "2019.11.09"]
[Round "5.13"]
[White "Nordquelle, Amelia"]
[Black "Eliseev, Sergey"]
[Result "0-1"]
[ECO "D40"]
[WhiteElo "1670"]
[BlackElo "1911"]
[Annotator "NA RC"]
[PlyCount "58"]
[EventDate "2019.11.08"]
[EventType "swiss"]
[EventCountry "NOR"]
[SourceTitle "playchess.com"]
[Source "ChessBase"]
[SourceQuality "1"]
[TimeControl "5400+30"]

1. d4 {[%emt 0:00:19]} Nf6 {[%emt 0:00:32]} 2. c4 {[%emt 0:00:44]} e6 {[%emt 0:01:06]} 3. Nc3 {[%emt 0:00:24]} d5 {[%emt 0:00:49]} 4. Nf3 {[%emt 0:03:21]} c5 {[%emt 0:04:43]} 5. dxc5 {[%emt 0:02:16]} Bxc5 {[%emt 0:08:04]} 6. Bg5 {[%emt 0:00:30] D40: Queen's Gambit Declined: Semi-Tarrasch with 5 e3} (6. cxd5 exd5 7. e3 O-O 8. Be2 Nc6 9. O-O a6 10. b3 Bg4 11. Bb2 Ba7 12. Nd4 Bxd4 13. Bxg4 Be5 14. Bf3 Qd6 15. g3 Rad8 16. Rb1 d4 17. exd4 Bxd4 18. Na4 b5 19. Bxc6 Bxf2+ 20. Kxf2 Qxc6 {½-½ (61) Enkhnar,E (2374)-Batchuluun,T (2537) Murun 2019}) 6... d4 {[%emt 0:00:30]} 7. Na4 $146 {[%emt 0:00:30]} ({Predecessor:} 7. Ne4 Nxe4 8. Bxd8 Bb4+ 9. Nd2 Bxd2+ 10. Qxd2 Nxd2 11. Kxd2 Kxd8 12. g3 Bd7 13. Bg2 Bc6 14. Bxc6 Nxc6 {0-1 (21) Secondi,A (1496)-Woodhouse,S (1720) ICCF email 2015}) 7... Bb4+ {[%emt 0:00:30]} 8. Bd2 {[%emt 0:00:30]} Qa5 {[%emt 0:00:30]} 9. a3 {[%emt 0:00:30]} Bxd2+ {[%emt 0:00:30]} 10. Nxd2 {[%emt 0:00:30]} Bd7 {[%emt 0:00:30]} 11. b3 {[%emt 0:00:30]} Bxa4 {[%emt 0:00:30]} 12. bxa4 {[%emt 0:00:30]} Ne4 {[%emt 0:00:30]} 13. g3 {[%emt 0:00:30]} Na6 {[%emt 0:00:30]} 14. Bg2 {[%emt 0:00:30]} Nac5 {[%emt 0:00:30]} 15. Bxe4 {[%emt 0:00:30]} Nxe4 {[%emt 0:00:30]} 16. Qc2 {[%emt 0:00:30]} Nc5 {[%emt 0:00:30]} 17. O-O {[%emt 0:00:30]} Qxa4 {[%emt 0:00:30]} 18. Qxa4+ {[%emt 0:00:30]} Nxa4 {[%emt 0:00:30]} 19. Nf3 {[%emt 0:00:30]} Rd8 {[%emt 0:00:30]} 20. Rfd1 {[%emt 0:00:30]} Nc3 {[%emt 0:00:30]} 21. Rd2 {[%emt 0:00:30]} f6 {[%emt 0:00:30]} 22. Rc1 {[%emt 0:00:30]} e5 {[%emt 0:00:30]} 23. Rb2 {[%emt 0:00:30] [#]} (23. c5 $17 {was necessary.}) 23... b6 $1 {[%emt 0:00:30]} 24. e3 {[%emt 0:00:30] [#]} Na4 $1 {[%emt 0:00:30]} 25. Rb4 {[%emt 0:00:30] [#]} Nc5 $1 {[%emt 0:00:30]} 26. Rd1 {[%emt 0:00:30]} dxe3 {[%emt 0:00:30]} 27. Rxd8+ {[%emt 0:00:30]} Kxd8 {[%emt 0:00:30]} 28. fxe3 {[%emt 0:26:44]} Kc7 {[%emt 0:22:56]} 29. Kf2 $19 {[%emt 0:00:30]} (29. Rb2 $142 Kd7 30. Kf1) 29... Nd3+ {[%emt 0:00:30] Double Attack} 0-1